[Event "Titled Tuesday Blitz May 9 Late 2023"]
[White "Koutlas, Nikolaos"]
[Black "Makarian, Rudik"]
[WhiteFideId "25827138"]
[BlackFideId "44105681"]
[WhiteElo "2215"]
[BlackElo "2461"]
[Result "0-1"]
[Round "01"]
[TimeControl "180+2"]
[Date "2023.05.09"]
[WhiteClock "0:00:01"]
[BlackClock "0:00:50"]

1. Nf3 {[%clk 0:02:56]}  Nf6 {[%clk 0:02:59]} 2. g3 {[%clk 0:02:48]}  b5 {[%clk 0:02:59]} 3. Bg2 {[%clk 0:02:49]}  Bb7 {[%clk 0:02:59]} 4. O-O {[%clk 0:02:49]}  e6 {[%clk 0:03:00]} 5. a4 {[%clk 0:02:50]}  b4 {[%clk 0:03:00]} 6. a5 {[%clk 0:02:51]}  Be7 {[%clk 0:03:00]} 7. c4 {[%clk 0:02:51]}  O-O {[%clk 0:03:00]} 8. d4 {[%clk 0:02:51]}  Na6 {[%clk 0:03:01]} 9. b3 {[%clk 0:02:50]}  c5 {[%clk 0:03:01]} 10. Bb2 {[%clk 0:02:50]}  d5 {[%clk 0:03:02]} 11. Ne5 {[%clk 0:02:47]}  Qc7 {[%clk 0:02:59]} 12. e3 {[%clk 0:02:44]}  dxc4 {[%clk 0:02:58]} 13. Bxb7 {[%clk 0:02:42]}  Qxb7 {[%clk 0:02:59]} 14. Nxc4 {[%clk 0:02:43]}  Rfd8 {[%clk 0:02:58]} 15. Nbd2 {[%clk 0:02:43]}  Rac8 {[%clk 0:02:48]} 16. Ne5 {[%clk 0:02:27]}  cxd4 {[%clk 0:02:47]} 17. exd4 {[%clk 0:02:23]}  Nc7 {[%clk 0:02:44]} 18. Ndc4 {[%clk 0:02:15]}  Nb5 {[%clk 0:02:40]} 19. a6 {[%clk 0:02:03]}  Qa8 {[%clk 0:02:36]} 20. Rc1 {[%clk 0:01:48]}  Nd5 {[%clk 0:02:33]} 21. Qf3 {[%clk 0:01:41]}  Bf6 {[%clk 0:02:33]} 22. g4 {[%clk 0:01:42]}  h6 {[%clk 0:02:29]} 23. h4 {[%clk 0:01:38]}  Ndc3 {[%clk 0:02:29]} 24. Qxa8 {[%clk 0:01:26]}  Rxa8 {[%clk 0:02:30]} 25. Kg2 {[%clk 0:01:11]}  Bxh4 {[%clk 0:02:21]} 26. Nc6 {[%clk 0:01:10]}  Rdc8 {[%clk 0:02:19]} 27. Nxb4 {[%clk 0:01:08]}  Ne2 {[%clk 0:02:11]} 28. Rcd1 {[%clk 0:01:07]}  Rab8 {[%clk 0:02:03]} 29. Rfe1 {[%clk 0:00:51]}  Nexd4 {[%clk 0:01:12]} 30. Bxd4 {[%clk 0:00:45]}  Nxd4 {[%clk 0:01:13]} 31. Nd6 {[%clk 0:00:45]}  Nc2 {[%clk 0:01:13]} 32. Nxc8 {[%clk 0:00:35]}  Nxe1+ {[%clk 0:01:13]} 33. Rxe1 {[%clk 0:00:35]}  Rxc8 {[%clk 0:01:13]} 34. Re4 {[%clk 0:00:27]}  Be7 {[%clk 0:01:11]} 35. Nd3 {[%clk 0:00:20]}  Rc6 {[%clk 0:01:10]} 36. Ra4 {[%clk 0:00:19]}  Rb6 {[%clk 0:01:05]} 37. b4 {[%clk 0:00:18]}  g5 {[%clk 0:01:05]} 38. Kf3 {[%clk 0:00:16]}  f5 {[%clk 0:01:05]} 39. Nc5 {[%clk 0:00:14]}  Bxc5 {[%clk 0:01:03]} 40. bxc5 {[%clk 0:00:14]}  Rb3+ {[%clk 0:01:03]} 41. Ke2 {[%clk 0:00:11]}  Rc3 {[%clk 0:00:56]} 42. gxf5 {[%clk 0:00:11]}  exf5 {[%clk 0:00:56]} 43. Rb4 {[%clk 0:00:08]}  Rxc5 {[%clk 0:00:56]} 44. Rb7 {[%clk 0:00:08]}  Ra5 {[%clk 0:00:55]} 45. Rxa7 {[%clk 0:00:08]}  Ra3 {[%clk 0:00:52]} 46. Kd2 {[%clk 0:00:04]}  h5 {[%clk 0:00:52]} 47. Kc2 {[%clk 0:00:04]}  h4 {[%clk 0:00:53]} 48. Kb2 {[%clk 0:00:04]}  Ra5 {[%clk 0:00:53]} 49. Kb3 {[%clk 0:00:02]}  h3 {[%clk 0:00:53]} 50. Kb4 {[%clk 0:00:02]}  Ra1 {[%clk 0:00:51]} 51. Kb5 {[%clk 0:00:01]}  h2 {[%clk 0:00:50]} 0-1


[Site "https://www.chess.com"]

[Event "Titled Tuesday Blitz May 9 Late 2023"]
[White "Kramnik, Vladimir"]
[Black "Martic, Ivan"]
[WhiteFideId "4101588"]
[BlackFideId "929301"]
[WhiteElo "2703"]
[BlackElo "2360"]
[Result "1-0"]
[Round "01"]
[TimeControl "180+2"]
[Date "2023.05.09"]
[WhiteClock "0:00:32"]
[BlackClock "0:00:16"]

1. Nf3 {[%clk 0:02:58]}  Nf6 {[%clk 0:02:59]} 2. g3 {[%clk 0:02:57]}  g6 {[%clk 0:02:58]} 3. Bg2 {[%clk 0:02:58]}  Bg7 {[%clk 0:02:59]} 4. O-O {[%clk 0:02:58]}  O-O {[%clk 0:02:59]} 5. d4 {[%clk 0:02:58]}  d6 {[%clk 0:02:57]} 6. Nc3 {[%clk 0:02:57]}  d5 {[%clk 0:02:57]} 7. Ne5 {[%clk 0:02:56]}  c6 {[%clk 0:02:55]} 8. e4 {[%clk 0:02:53]}  dxe4 {[%clk 0:02:49]} 9. Nxe4 {[%clk 0:02:53]}  Nxe4 {[%clk 0:02:48]} 10. Bxe4 {[%clk 0:02:53]}  Bh3 {[%clk 0:02:44]} 11. Re1 {[%clk 0:02:53]}  Nd7 {[%clk 0:02:41]} 12. f4 {[%clk 0:02:38]}  Nf6 {[%clk 0:02:31]} 13. Bf3 {[%clk 0:02:37]}  Qb6 {[%clk 0:02:07]} 14. Be3 {[%clk 0:02:36]}  Rad8 {[%clk 0:01:48]} 15. c4 {[%clk 0:02:14]}  Qb4 {[%clk 0:01:13]} 16. Qb3 {[%clk 0:02:10]}  Qxb3 {[%clk 0:01:07]} 17. axb3 {[%clk 0:02:09]}  a6 {[%clk 0:01:08]} 18. Rad1 {[%clk 0:01:58]}  e6 {[%clk 0:01:05]} 19. g4 {[%clk 0:01:52]}  h5 {[%clk 0:01:03]} 20. gxh5 {[%clk 0:01:48]}  Nxh5 {[%clk 0:01:02]} 21. Bxh5 {[%clk 0:01:45]}  gxh5 {[%clk 0:01:03]} 22. Kf2 {[%clk 0:01:45]}  Kh7 {[%clk 0:00:59]} 23. Rg1 {[%clk 0:01:43]}  Bf6 {[%clk 0:00:58]} 24. Rd2 {[%clk 0:01:33]}  Bf5 {[%clk 0:00:49]} 25. Nf3 {[%clk 0:01:27]}  Rd7 {[%clk 0:00:42]} 26. Ng5+ {[%clk 0:01:23]}  Kh6 {[%clk 0:00:42]} 27. h4 {[%clk 0:01:11]}  Rfd8 {[%clk 0:00:38]} 28. Rgd1 {[%clk 0:00:58]}  Kg6 {[%clk 0:00:39]} 29. Nf3 {[%clk 0:00:48]}  Bg4 {[%clk 0:00:36]} 30. Rg1 {[%clk 0:00:47]}  Kf5 {[%clk 0:00:35]} 31. Ne5 {[%clk 0:00:42]}  Bxh4+ {[%clk 0:00:33]} 32. Kf1 {[%clk 0:00:39]}  Bh3+ {[%clk 0:00:20]} 33. Ke2 {[%clk 0:00:38]}  Bg4+ {[%clk 0:00:19]} 34. Kd3 {[%clk 0:00:36]}  Re7 {[%clk 0:00:19]} 35. Rh2 {[%clk 0:00:33]}  Bf6 {[%clk 0:00:18]} 36. Rxg4 {[%clk 0:00:32]}  Bxe5 {[%clk 0:00:16]} 37. Rg5+ {[%clk 0:00:32]}  Kf6 {[%clk 0:00:16]} 38. fxe5# {[%clk 0:00:32]} 1-0


[Site "https://www.chess.com"]

[Event "Titled Tuesday Blitz May 9 Late 2023"]
[White "Goncalves, Davi Sulzbacher"]
[Black "Zhigalko, Sergei"]
[WhiteFideId "2154510"]
[BlackFideId "13502956"]
[WhiteElo "2182"]
[BlackElo "2626"]
[Result "0-1"]
[Round "01"]
[TimeControl "180+2"]
[Date "2023.05.09"]
[WhiteClock "0:01:29"]
[BlackClock "0:02:08"]

1. Nf3 {[%clk 0:02:59]}  d5 {[%clk 0:03:00]} 2. d4 {[%clk 0:02:56]}  e6 {[%clk 0:02:59]} 3. c4 {[%clk 0:02:57]}  c6 {[%clk 0:02:59]} 4. g3 {[%clk 0:02:57]}  dxc4 {[%clk 0:02:59]} 5. Bg2 {[%clk 0:02:57]}  b5 {[%clk 0:03:00]} 6. O-O {[%clk 0:02:57]}  Bb7 {[%clk 0:03:00]} 7. b3 {[%clk 0:02:57]}  cxb3 {[%clk 0:03:00]} 8. axb3 {[%clk 0:02:58]}  Nf6 {[%clk 0:03:01]} 9. Qc2 {[%clk 0:02:57]}  Be7 {[%clk 0:02:57]} 10. Rd1 {[%clk 0:02:53]}  O-O {[%clk 0:02:57]} 11. Ne5 {[%clk 0:02:53]}  Nd5 {[%clk 0:02:54]} 12. Bb2 {[%clk 0:02:28]}  a5 {[%clk 0:02:48]} 13. Nc3 {[%clk 0:02:25]}  Nb4 {[%clk 0:02:49]} 14. Qc1 {[%clk 0:02:14]}  Nd7 {[%clk 0:02:49]} 15. Nxb5 {[%clk 0:02:05]}  Rc8 {[%clk 0:02:43]} 16. Na3 {[%clk 0:02:00]}  Nd5 {[%clk 0:02:10]} 17. Nac4 {[%clk 0:01:58]}  Bb4 {[%clk 0:02:11]} 18. e4 {[%clk 0:01:49]}  N5f6 {[%clk 0:02:08]} 19. Nxd7 {[%clk 0:01:41]}  Nxd7 {[%clk 0:02:08]} 20. Nxa5 {[%clk 0:01:29]}  Bxa5 {[%clk 0:02:08]} 0-1


[Site "https://www.chess.com"]

[Event "Titled Tuesday Blitz May 9 Late 2023"]
[White "Yoo, Christopher Woojin"]
[Black "Ladan, Nicholas"]
[WhiteFideId "30909694"]
[BlackFideId "30918855"]
[WhiteElo "2519"]
[BlackElo "2167"]
[Result "1-0"]
[Round "01"]
[TimeControl "180+2"]
[Date "2023.05.09"]
[WhiteClock "0:01:14"]
[BlackClock "0:00:46"]

1. d4 {[%clk 0:02:59]}  d5 {[%clk 0:02:59]} 2. Nf3 {[%clk 0:03:00]}  Nf6 {[%clk 0:02:56]} 3. Bf4 {[%clk 0:03:00]}  c5 {[%clk 0:02:54]} 4. e3 {[%clk 0:03:01]}  Nc6 {[%clk 0:02:54]} 5. Nbd2 {[%clk 0:03:01]}  cxd4 {[%clk 0:02:54]} 6. exd4 {[%clk 0:03:01]}  Bf5 {[%clk 0:02:54]} 7. Bb5 {[%clk 0:03:00]}  Qb6 {[%clk 0:02:53]} 8. c4 {[%clk 0:03:00]}  dxc4 {[%clk 0:02:54]} 9. a4 {[%clk 0:03:00]}  e6 {[%clk 0:02:48]} 10. Nxc4 {[%clk 0:02:59]}  Bb4+ {[%clk 0:02:46]} 11. Bd2 {[%clk 0:02:59]}  Bxd2+ {[%clk 0:02:42]} 12. Qxd2 {[%clk 0:03:00]}  Qc7 {[%clk 0:02:40]} 13. Qb4 {[%clk 0:02:23]}  Nd5 {[%clk 0:02:14]} 14. Nd6+ {[%clk 0:01:47]}  Kd7 {[%clk 0:02:08]} 15. Ne5+ {[%clk 0:01:45]}  Kd8 {[%clk 0:01:48]} 16. Nexf7+ {[%clk 0:01:31]}  Kd7 {[%clk 0:01:48]} 17. Qc5 {[%clk 0:01:22]}  Qa5+ {[%clk 0:01:20]} 18. Kf1 {[%clk 0:01:19]}  Qb4 {[%clk 0:01:08]} 19. Bxc6+ {[%clk 0:01:15]}  bxc6 {[%clk 0:01:07]} 20. Ne5+ {[%clk 0:01:15]}  Ke7 {[%clk 0:00:46]} 21. Nxc6+ {[%clk 0:01:14]} 1-0


[Site "https://www.chess.com"]

[Event "Titled Tuesday Blitz May 9 Late 2023"]
[White "Prydun, Andriy"]
[Black "Tari, Aryan"]
[WhiteFideId "14145898"]
[BlackFideId "1510045"]
[WhiteElo "2164"]
[BlackElo "2571"]
[Result "0-1"]
[Round "01"]
[TimeControl "180+2"]
[Date "2023.05.09"]
[WhiteClock "0:00:01"]
[BlackClock "0:00:09"]

1. e4 {[%clk 0:02:56]}  e5 {[%clk 0:02:56]} 2. Nf3 {[%clk 0:02:56]}  Nc6 {[%clk 0:02:57]} 3. Bb5 {[%clk 0:02:55]}  a6 {[%clk 0:02:57]} 4. Ba4 {[%clk 0:02:54]}  Nf6 {[%clk 0:02:56]} 5. d3 {[%clk 0:02:54]}  Bc5 {[%clk 0:02:53]} 6. b4 {[%clk 0:02:38]}  Bxb4+ {[%clk 0:02:48]} 7. c3 {[%clk 0:02:39]}  Bd6 {[%clk 0:02:39]} 8. O-O {[%clk 0:02:37]}  O-O {[%clk 0:02:35]} 9. Bg5 {[%clk 0:02:37]}  b5 {[%clk 0:02:34]} 10. Bc2 {[%clk 0:02:36]}  Be7 {[%clk 0:02:34]} 11. d4 {[%clk 0:02:36]}  d6 {[%clk 0:02:33]} 12. a4 {[%clk 0:02:33]}  Rb8 {[%clk 0:02:27]} 13. axb5 {[%clk 0:02:31]}  axb5 {[%clk 0:02:28]} 14. Nbd2 {[%clk 0:02:28]}  b4 {[%clk 0:02:15]} 15. d5 {[%clk 0:02:22]}  bxc3 {[%clk 0:02:15]} 16. Nb1 {[%clk 0:02:22]}  Nb4 {[%clk 0:02:07]} 17. Nxc3 {[%clk 0:02:22]}  Bg4 {[%clk 0:01:59]} 18. Ba4 {[%clk 0:02:14]}  Nfxd5 {[%clk 0:01:53]} 19. Nxd5 {[%clk 0:01:30]}  Bxg5 {[%clk 0:01:51]} 20. Nxb4 {[%clk 0:01:28]}  Rxb4 {[%clk 0:01:52]} 21. Bc6 {[%clk 0:01:27]}  Qb8 {[%clk 0:01:31]} 22. Ra3 {[%clk 0:01:08]}  Qb6 {[%clk 0:01:24]} 23. Qd5 {[%clk 0:00:48]}  Bxf3 {[%clk 0:00:56]} 24. Rxf3 {[%clk 0:00:46]}  Rd4 {[%clk 0:00:56]} 25. Rb3 {[%clk 0:00:41]}  Rxd5 {[%clk 0:00:44]} 26. Rxb6 {[%clk 0:00:40]}  Rc5 {[%clk 0:00:44]} 27. Ra6 {[%clk 0:00:39]}  g6 {[%clk 0:00:45]} 28. Rd1 {[%clk 0:00:37]}  Kg7 {[%clk 0:00:45]} 29. g3 {[%clk 0:00:31]}  h5 {[%clk 0:00:43]} 30. h4 {[%clk 0:00:30]}  Bh6 {[%clk 0:00:44]} 31. Rb1 {[%clk 0:00:28]}  g5 {[%clk 0:00:28]} 32. hxg5 {[%clk 0:00:26]}  Bxg5 {[%clk 0:00:29]} 33. Rb7 {[%clk 0:00:26]}  Bd8 {[%clk 0:00:29]} 34. Bd5 {[%clk 0:00:25]}  h4 {[%clk 0:00:28]} 35. gxh4 {[%clk 0:00:25]}  Bxh4 {[%clk 0:00:28]} 36. Rc6 {[%clk 0:00:25]}  Rxc6 {[%clk 0:00:26]} 37. Bxc6 {[%clk 0:00:25]}  Ra8 {[%clk 0:00:25]} 38. Rxc7 {[%clk 0:00:24]}  Ra1+ {[%clk 0:00:26]} 39. Kg2 {[%clk 0:00:22]}  Rc1 {[%clk 0:00:26]} 40. f3 {[%clk 0:00:12]}  Bg5 {[%clk 0:00:20]} 41. Rc8 {[%clk 0:00:11]}  Rc2+ {[%clk 0:00:20]} 42. Kg3 {[%clk 0:00:08]}  Bf4+ {[%clk 0:00:21]} 43. Kg4 {[%clk 0:00:08]}  Kf6 {[%clk 0:00:20]} 44. Bd7 {[%clk 0:00:06]}  Rg2+ {[%clk 0:00:19]} 45. Kh3 {[%clk 0:00:07]}  Rg3+ {[%clk 0:00:19]} 46. Kh4 {[%clk 0:00:06]}  Rxf3 {[%clk 0:00:18]} 47. Rc6 {[%clk 0:00:04]}  Rd3 {[%clk 0:00:16]} 48. Bf5 {[%clk 0:00:04]}  Ke7 {[%clk 0:00:15]} 49. Rc7+ {[%clk 0:00:04]}  Kf8 {[%clk 0:00:16]} 50. Rd7 {[%clk 0:00:03]}  Ke8 {[%clk 0:00:15]} 51. Kg4 {[%clk 0:00:04]}  Rd1 {[%clk 0:00:13]} 52. Kf3 {[%clk 0:00:03]}  Rd3+ {[%clk 0:00:11]} 53. Ke2 {[%clk 0:00:03]}  Rd4 {[%clk 0:00:11]} 54. Kf3 {[%clk 0:00:03]}  Kf8 {[%clk 0:00:12]} 55. Rd8+ {[%clk 0:00:02]}  Kg7 {[%clk 0:00:12]} 56. Rd7 {[%clk 0:00:03]}  Kf6 {[%clk 0:00:13]} 57. Ke2 {[%clk 0:00:02]}  d5 {[%clk 0:00:12]} 58. Kf3 {[%clk 0:00:01]}  dxe4+ {[%clk 0:00:13]} 59. Kg4 {[%clk 0:00:01]}  Rb4 {[%clk 0:00:07]} 60. Rd6+ {[%clk 0:00:02]}  Ke7 {[%clk 0:00:08]} 61. Rc6 {[%clk 0:00:02]}  e3 {[%clk 0:00:08]} 62. Kh5 {[%clk 0:00:02]}  e2 {[%clk 0:00:08]} 63. Bg4 {[%clk 0:00:02]}  e1=Q {[%clk 0:00:08]} 64. Rc7+ {[%clk 0:00:02]}  Kf6 {[%clk 0:00:08]} 65. Rxf7+ {[%clk 0:00:01]}  Kxf7 {[%clk 0:00:09]} 0-1


[Site "https://www.chess.com"]

[Event "Titled Tuesday Blitz May 9 Late 2023"]
[White "Dardha, Daniel"]
[Black "Mikhalsky, Vladimir"]
[WhiteFideId "240990"]
[BlackFideId "14144352"]
[WhiteElo "2581"]
[BlackElo "2236"]
[Result "1-0"]
[Round "01"]
[TimeControl "180+2"]
[Date "2023.05.09"]
[WhiteClock "0:01:40"]
[BlackClock "0:00:00"]

1. e4 {[%clk 0:02:59]}  g6 {[%clk 0:02:57]} 2. h4 {[%clk 0:02:59]}  h5 {[%clk 0:02:54]} 3. d4 {[%clk 0:02:58]}  Bg7 {[%clk 0:02:45]} 4. Bc4 {[%clk 0:02:56]}  c6 {[%clk 0:02:31]} 5. Qf3 {[%clk 0:02:50]}  e6 {[%clk 0:02:17]} 6. e5 {[%clk 0:02:49]}  d5 {[%clk 0:02:08]} 7. exd6 {[%clk 0:02:49]}  Qxd6 {[%clk 0:02:07]} 8. Ne2 {[%clk 0:02:47]}  Nd7 {[%clk 0:01:56]} 9. Nbc3 {[%clk 0:02:44]}  Ngf6 {[%clk 0:01:49]} 10. Bf4 {[%clk 0:02:44]}  Qb4 {[%clk 0:01:47]} 11. Bb3 {[%clk 0:02:42]}  Ng4 {[%clk 0:01:39]} 12. O-O-O {[%clk 0:02:40]}  a5 {[%clk 0:01:37]} 13. Ne4 {[%clk 0:02:38]}  Bh6 {[%clk 0:00:41]} 14. a3 {[%clk 0:02:27]}  Qe7 {[%clk 0:00:36]} 15. Kb1 {[%clk 0:02:20]}  a4 {[%clk 0:00:36]} 16. Ba2 {[%clk 0:02:18]}  Bxf4 {[%clk 0:00:35]} 17. Nxf4 {[%clk 0:02:09]}  Ndf6 {[%clk 0:00:33]} 18. Ng5 {[%clk 0:02:08]}  Ra5 {[%clk 0:00:24]} 19. Rhe1 {[%clk 0:01:53]}  O-O {[%clk 0:00:23]} 20. Ngxe6 {[%clk 0:01:43]}  fxe6 {[%clk 0:00:21]} 21. Nxg6 {[%clk 0:01:43]}  Qg7 {[%clk 0:00:16]} 22. Nxf8 {[%clk 0:01:44]}  Qxf8 {[%clk 0:00:16]} 23. Bxe6+ {[%clk 0:01:42]}  Bxe6 {[%clk 0:00:15]} 24. Rxe6 {[%clk 0:01:43]}  Nd5 {[%clk 0:00:14]} 25. Rg6+ {[%clk 0:01:39]}  Kh7 {[%clk 0:00:05]} 26. Qxf8 {[%clk 0:01:39]}  Kxg6 {[%clk 0:00:05]} 27. Qg8+ {[%clk 0:01:39]}  Kh6 {[%clk 0:00:05]} 28. Qg5+ {[%clk 0:01:37]}  Kh7 {[%clk 0:00:04]} 29. Qxh5+ {[%clk 0:01:38]}  Nh6 {[%clk 0:00:05]} 30. Qe5 {[%clk 0:01:38]}  Nc3+ {[%clk 0:00:03]} 31. bxc3 {[%clk 0:01:39]}  Rxe5 {[%clk 0:00:03]} 32. dxe5 {[%clk 0:01:40]}  Ng4 {[%clk 0:00:03]} 33. Rd7+ {[%clk 0:01:40]}  Kg6 {[%clk 0:00:03]} 34. e6 {[%clk 0:01:41]}  Kf6 {[%clk 0:00:02]} 35. f3 {[%clk 0:01:40]}  Ne5 {[%clk 0:00:02]} 36. e7 {[%clk 0:01:41]}  Kf7 {[%clk 0:00:01]} 37. Rxb7 {[%clk 0:01:42]}  Nc4 {[%clk 0:00:00]} 38. h5 {[%clk 0:01:40]} 1-0


[Site "https://www.chess.com"]

[Event "Titled Tuesday Blitz May 9 Late 2023"]
[White "Vega Gutierrez, Sabrina"]
[Black "Kamsky, Gata"]
[WhiteFideId "2219026"]
[BlackFideId "2000024"]
[WhiteElo "2209"]
[BlackElo "2660"]
[Result "0-1"]
[Round "01"]
[TimeControl "180+2"]
[Date "2023.05.09"]
[WhiteClock "0:00:00"]
[BlackClock "0:01:04"]

1. e4 {[%clk 0:03:00]}  c5 {[%clk 0:02:58]} 2. Nf3 {[%clk 0:03:01]}  e6 {[%clk 0:02:55]} 3. d4 {[%clk 0:03:01]}  cxd4 {[%clk 0:02:55]} 4. Nxd4 {[%clk 0:03:02]}  a6 {[%clk 0:02:55]} 5. Nc3 {[%clk 0:02:58]}  b5 {[%clk 0:02:54]} 6. Bd3 {[%clk 0:02:57]}  Qb6 {[%clk 0:02:53]} 7. Nb3 {[%clk 0:02:55]}  Qc7 {[%clk 0:02:52]} 8. O-O {[%clk 0:02:54]}  Nc6 {[%clk 0:02:50]} 9. f4 {[%clk 0:02:48]}  Bb7 {[%clk 0:02:45]} 10. Kh1 {[%clk 0:02:47]}  Nb4 {[%clk 0:02:39]} 11. f5 {[%clk 0:02:23]}  Nf6 {[%clk 0:02:32]} 12. Bg5 {[%clk 0:01:59]}  Be7 {[%clk 0:02:28]} 13. a3 {[%clk 0:01:59]}  Nxd3 {[%clk 0:02:27]} 14. cxd3 {[%clk 0:02:00]}  Rc8 {[%clk 0:02:10]} 15. Rc1 {[%clk 0:01:59]}  Qb8 {[%clk 0:02:09]} 16. Qe1 {[%clk 0:01:50]}  e5 {[%clk 0:02:01]} 17. Na5 {[%clk 0:01:36]}  Ba8 {[%clk 0:01:58]} 18. Ne2 {[%clk 0:01:05]}  O-O {[%clk 0:01:50]} 19. Ng3 {[%clk 0:01:00]}  Rxc1 {[%clk 0:01:47]} 20. Qxc1 {[%clk 0:01:00]}  Rc8 {[%clk 0:01:46]} 21. Qd1 {[%clk 0:00:45]}  Qc7 {[%clk 0:01:34]} 22. b4 {[%clk 0:00:42]}  Qc2 {[%clk 0:01:31]} 23. Qf3 {[%clk 0:00:40]}  h6 {[%clk 0:01:19]} 24. Rc1 {[%clk 0:00:05]}  Qxc1+ {[%clk 0:01:16]} 25. Bxc1 {[%clk 0:00:05]}  Rxc1+ {[%clk 0:01:16]} 26. Nf1 {[%clk 0:00:06]}  d5 {[%clk 0:01:15]} 27. Nb3 {[%clk 0:00:05]}  Rc3 {[%clk 0:01:13]} 28. Nbd2 {[%clk 0:00:05]}  Rxa3 {[%clk 0:01:11]} 29. Qg3 {[%clk 0:00:05]}  Bd6 {[%clk 0:01:05]} 30. exd5 {[%clk 0:00:04]}  Bxd5 {[%clk 0:01:04]} 31. Ne4 {[%clk 0:00:05]}  Bxe4 {[%clk 0:01:04]} 32. dxe4 {[%clk 0:00:05]}  Rxg3 {[%clk 0:01:03]} 33. Nxg3 {[%clk 0:00:00]}  Bxb4 {[%clk 0:01:04]} 0-1


[Site "https://www.chess.com"]

[Event "Titled Tuesday Blitz May 9 Late 2023"]
[White "Pichot, Alan"]
[Black "marik_spb"]
[WhiteFideId "110973"]
[WhiteElo "2573"]
[BlackElo "2456"]
[Result "1-0"]
[Round "01"]
[TimeControl "180+2"]
[Date "2023.05.09"]
[WhiteClock "0:00:32"]
[BlackClock "0:00:02"]

1. e4 {[%clk 0:02:58]}  c6 {[%clk 0:02:51]} 2. Nf3 {[%clk 0:02:57]}  d5 {[%clk 0:02:51]} 3. e5 {[%clk 0:02:58]}  Bf5 {[%clk 0:02:51]} 4. Nh4 {[%clk 0:02:58]}  Bg6 {[%clk 0:02:50]} 5. d4 {[%clk 0:02:55]}  e6 {[%clk 0:02:50]} 6. Nxg6 {[%clk 0:02:55]}  hxg6 {[%clk 0:02:50]} 7. Nd2 {[%clk 0:02:44]}  c5 {[%clk 0:02:43]} 8. Nf3 {[%clk 0:02:27]}  Ne7 {[%clk 0:02:40]} 9. dxc5 {[%clk 0:02:25]}  Nec6 {[%clk 0:02:36]} 10. c3 {[%clk 0:02:20]}  Nd7 {[%clk 0:02:30]} 11. Bf4 {[%clk 0:02:15]}  Bxc5 {[%clk 0:01:59]} 12. Bd3 {[%clk 0:02:14]}  Qc7 {[%clk 0:01:32]} 13. Qe2 {[%clk 0:02:11]}  g5 {[%clk 0:01:27]} 14. Nxg5 {[%clk 0:02:08]}  Ndxe5 {[%clk 0:01:21]} 15. Bb5 {[%clk 0:02:06]}  Bd6 {[%clk 0:01:21]} 16. Bg3 {[%clk 0:01:53]}  a6 {[%clk 0:01:16]} 17. Ba4 {[%clk 0:01:39]}  b5 {[%clk 0:01:15]} 18. Bb3 {[%clk 0:01:39]}  O-O-O {[%clk 0:00:59]} 19. a4 {[%clk 0:01:36]}  Nc4 {[%clk 0:00:58]} 20. axb5 {[%clk 0:01:35]}  Bxg3 {[%clk 0:00:49]} 21. bxc6 {[%clk 0:01:33]}  Bxh2 {[%clk 0:00:31]} 22. Rxa6 {[%clk 0:01:28]}  Nb6 {[%clk 0:00:28]} 23. Qb5 {[%clk 0:01:26]}  Bf4 {[%clk 0:00:24]} 24. Rxh8 {[%clk 0:01:15]}  Qe5+ {[%clk 0:00:20]} 25. Kf1 {[%clk 0:01:11]}  Rxh8 {[%clk 0:00:20]} 26. Nh3 {[%clk 0:01:12]}  Bd2 {[%clk 0:00:18]} 27. Ra8+ {[%clk 0:01:03]}  Kc7 {[%clk 0:00:17]} 28. Ra7+ {[%clk 0:01:02]}  Kc8 {[%clk 0:00:08]} 29. Qa6+ {[%clk 0:01:01]}  Kd8 {[%clk 0:00:08]} 30. Qxb6+ {[%clk 0:01:01]}  Ke8 {[%clk 0:00:09]} 31. Ra1 {[%clk 0:00:35]}  Rxh3 {[%clk 0:00:02]} 32. Ra8+ {[%clk 0:00:32]}  Ke7 {[%clk 0:00:02]} 33. Qd8# {[%clk 0:00:32]} 1-0


[Site "https://www.chess.com"]

[Event "Titled Tuesday Blitz May 9 Late 2023"]
[White "Mackster23"]
[Black "Bachmann, Axel"]
[BlackFideId "3700488"]
[WhiteElo "2450"]
[BlackElo "2605"]
[Result "0-1"]
[Round "01"]
[TimeControl "180+2"]
[Date "2023.05.09"]
[WhiteClock "0:00:00"]
[BlackClock "0:01:23"]

1. e4 {[%clk 0:03:00]}  Nc6 {[%clk 0:02:59]} 2. Nc3 {[%clk 0:02:58]}  d6 {[%clk 0:02:59]} 3. d4 {[%clk 0:02:58]}  Nf6 {[%clk 0:03:00]} 4. Nf3 {[%clk 0:02:44]}  Bg4 {[%clk 0:02:58]} 5. Be2 {[%clk 0:02:41]}  e6 {[%clk 0:02:56]} 6. Be3 {[%clk 0:02:39]}  Be7 {[%clk 0:02:56]} 7. h3 {[%clk 0:02:39]}  Bh5 {[%clk 0:02:53]} 8. Nd2 {[%clk 0:02:13]}  Bg6 {[%clk 0:02:49]} 9. Bf3 {[%clk 0:02:02]}  O-O {[%clk 0:02:47]} 10. Nb3 {[%clk 0:02:02]}  d5 {[%clk 0:02:41]} 11. e5 {[%clk 0:01:57]}  Nd7 {[%clk 0:02:24]} 12. g3 {[%clk 0:01:34]}  f6 {[%clk 0:02:17]} 13. Bg4 {[%clk 0:01:19]}  fxe5 {[%clk 0:02:13]} 14. Bxe6+ {[%clk 0:01:19]}  Kh8 {[%clk 0:02:14]} 15. Nxd5 {[%clk 0:01:16]}  exd4 {[%clk 0:02:13]} 16. Nxd4 {[%clk 0:01:14]}  Nde5 {[%clk 0:02:13]} 17. Nxc6 {[%clk 0:00:34]}  bxc6 {[%clk 0:01:58]} 18. Nf4 {[%clk 0:00:34]}  Be4 {[%clk 0:01:59]} 19. Rf1 {[%clk 0:00:21]}  Nf3+ {[%clk 0:01:53]} 20. Ke2 {[%clk 0:00:21]}  Qe8 {[%clk 0:01:50]} 21. c3 {[%clk 0:00:15]}  Bd6 {[%clk 0:01:49]} 22. Bg4 {[%clk 0:00:14]}  Bxf4 {[%clk 0:01:34]} 23. gxf4 {[%clk 0:00:15]}  Nh2 {[%clk 0:01:34]} 24. Rg1 {[%clk 0:00:14]}  h5 {[%clk 0:01:29]} 25. f3 {[%clk 0:00:07]}  Bd5 {[%clk 0:01:24]} 26. Rg2 {[%clk 0:00:00]}  hxg4 {[%clk 0:01:23]} 0-1


[Site "https://www.chess.com"]

[Event "Titled Tuesday Blitz May 9 Late 2023"]
[White "Foerster-Yialamas, Lucas"]
[Black "Salinas Herrera, Pablo"]
[WhiteFideId "30901774"]
[BlackFideId "3407128"]
[WhiteElo "2067"]
[BlackElo "2546"]
[Result "0-1"]
[Round "01"]
[TimeControl "180+2"]
[Date "2023.05.09"]
[WhiteClock "0:00:11"]
[BlackClock "0:02:32"]

1. e4 {[%clk 0:02:36]}  c5 {[%clk 0:02:59]} 2. Nf3 {[%clk 0:02:35]}  e6 {[%clk 0:03:00]} 3. d4 {[%clk 0:02:36]}  cxd4 {[%clk 0:03:01]} 4. Nxd4 {[%clk 0:02:36]}  a6 {[%clk 0:03:01]} 5. Nc3 {[%clk 0:02:35]}  Qc7 {[%clk 0:03:02]} 6. a3 {[%clk 0:02:35]}  d6 {[%clk 0:03:02]} 7. g3 {[%clk 0:02:34]}  Nc6 {[%clk 0:03:01]} 8. Be3 {[%clk 0:02:33]}  Nf6 {[%clk 0:03:01]} 9. Bg2 {[%clk 0:02:33]}  Be7 {[%clk 0:03:02]} 10. O-O {[%clk 0:02:33]}  O-O {[%clk 0:03:02]} 11. Kh1 {[%clk 0:02:32]}  Ne5 {[%clk 0:03:00]} 12. Nce2 {[%clk 0:02:26]}  b5 {[%clk 0:02:56]} 13. b3 {[%clk 0:02:26]}  Bb7 {[%clk 0:02:56]} 14. f3 {[%clk 0:02:19]}  d5 {[%clk 0:02:56]} 15. exd5 {[%clk 0:02:01]}  Nxd5 {[%clk 0:02:57]} 16. Bd2 {[%clk 0:01:59]}  Rfd8 {[%clk 0:02:57]} 17. f4 {[%clk 0:01:28]}  Ng4 {[%clk 0:02:57]} 18. h3 {[%clk 0:01:27]}  Nge3 {[%clk 0:02:57]} 19. Qe1 {[%clk 0:00:42]}  Nxg2 {[%clk 0:02:57]} 20. Qf2 {[%clk 0:00:39]}  Nge3 {[%clk 0:02:53]} 21. Rg1 {[%clk 0:00:26]}  Nxf4+ {[%clk 0:02:40]} 22. Kh2 {[%clk 0:00:25]}  Nxe2 {[%clk 0:02:40]} 23. Qxe2 {[%clk 0:00:25]}  Rxd4 {[%clk 0:02:38]} 24. Bxe3 {[%clk 0:00:25]}  Re4 {[%clk 0:02:37]} 25. Rae1 {[%clk 0:00:20]}  Bc5 {[%clk 0:02:31]} 26. Qf2 {[%clk 0:00:14]}  Rxe3 {[%clk 0:02:31]} 27. Rxe3 {[%clk 0:00:11]}  Bxe3 {[%clk 0:02:32]} 0-1


[Site "https://www.chess.com"]